bitfinex/quotes_BTCUSD_20220204
["timestamp","ask_amount","ask_price","bid_price","bid_amount"]
[1644008627943,0.38967889,40571.0,40570.0,0.00245764]
[1644008628144,0.38356955,40571.0,40570.0,0.00245764]
[1644008630494,0.11803865,40573.0,40570.0,0.05245764]
[1644008630696,0.28730159,40576.0,40570.0,0.05245764]
[1644008630898,0.33435,40575.0,40570.0,0.05245764]
[1644008631095,0.38435,40575.0,40570.0,0.05245764]
[1644008631300,0.15,40575.0,40571.0,0.00083123]
[1644008631596,0.33435,40573.0,40571.0,0.00189389]
[1644008631800,0.36673664,40572.0,40571.0,0.00207965]
[1644008631996,0.70108664,40572.0,40571.0,0.00189389]
[1644008632299,0.70108664,40572.0,40571.0,0.00106266]
[1644008632498,0.36673664,40572.0,40570.0,0.0426434]
[1644008632696,0.36673664,40572.0,40571.0,0.00070898]
[1644008634347,0.70108664,40572.0,40571.0,0.00070898]
[1644008635149,0.1363973,40572.0,40571.0,0.00070898]
[1644008635450,0.334359,40572.0,40571.0,0.00070898]
[1644008638397,0.16791832,40573.0,40571.0,0.00070898]
[1644008638398,0.00754236,40573.0,40571.0,0.00070898]
[1644008638996,0.334359,40572.0,40571.0,0.00070898]
[1644008639397,0.4556425,40572.0,40571.0,0.00070898]
[1644008641146,0.1212835,40572.0,40571.0,0.00070898]
[1644008641546,0.1212835,40572.0,40571.0,0.21207232]
[1644008641947,0.00754236,40573.0,40571.0,0.21207232]
[1644008642150,0.06162558,40579.0,40572.0,1.68285286]
[1644008642348,0.118,40581.0,40572.0,1.68285286]
[1644008642349,0.118,40581.0,40578.0,0.04245764]
[1644008642549,0.00754236,40583.0,40579.0,0.21162669]
[1644008642751,0.00754236,40583.0,40582.0,0.04245764]
[1644008642948,0.00754236,40583.0,40582.0,0.00070908]
[1644008643147,0.00754236,40583.0,40582.0,0.04316672]
[1644008643348,0.34190136,40583.0,40582.0,0.04316672]
[1644008643948,0.34190136,40583.0,40582.0,0.00070908]
[1644008644199,0.00754236,40583.0,40582.0,0.00070908]
[1644008644399,0.00754236,40583.0,40582.0,0.04316672]
[1644008645703,0.00746875,40583.0,40582.0,0.00070908]
[1644008645903,0.13064189,40584.0,40582.0,0.00070908]
[1644008646102,0.00746875,40585.0,40582.0,0.00070908]
[1644008647104,0.00746875,40585.0,40584.0,0.04253125]
[1644008647305,0.00746875,40585.0,40584.0,0.04324033]
[1644008648545,0.34182775,40585.0,40584.0,0.04324033]
[1644008649344,0.34182775,40585.0,40584.0,0.00070908]
[1644008649644,0.49182775,40585.0,40584.0,0.00070908]
[1644008649846,0.34182775,40585.0,40584.0,0.00070908]
[1644008650850,0.49182775,40585.0,40584.0,0.00070908]
[1644008651049,0.34182775,40585.0,40584.0,0.00070908]
[1644008651703,0.38682775,40585.0,40584.0,0.00070908]
[1644008651902,0.48682775,40585.0,40584.0,0.00070908]
[1644008656760,0.53682775,40585.0,40584.0,0.00070908]
[1644008657164,0.53682775,40585.0,40579.0,0.04180081]
[1644008657165,1.22324729,40584.0,40579.0,0.01906583]
[1644008657363,0.334359,40582.0,40579.0,0.01906583]
[1644008657563,0.00246875,40580.0,40579.0,0.01906583]
[1644008659101,0.00246875,40580.0,40577.0,0.04846209]
[1644008659498,0.15453266,40579.0,40577.0,0.04846209]
[1644008659799,0.35587351,40578.0,40577.0,0.00074508]
[1644008659998,0.35587351,40578.0,40577.0,0.00018576]
[1644008660197,0.35587351,40578.0,40576.0,0.21249956]
[1644008660398,0.35587351,40578.0,40576.0,0.2123138]
[1644008660800,0.47112926,40578.0,40576.0,0.2123138]
[1644008661199,0.35587351,40578.0,40576.0,0.21156881]
[1644008661399,0.00246875,40580.0,40576.0,0.21156881]
[1644008661601,0.00246875,40580.0,40576.0,0.21175457]
[1644008662299,0.13895417,40580.0,40576.0,0.21175457]
[1644008662500,0.13895417,40580.0,40576.0,0.21231361]
[1644008663144,0.13895417,40580.0,40576.0,0.21249937]
[1644008663649,0.13895417,40580.0,40576.0,0.21175457]
[1644008663846,0.13895417,40580.0,40576.0,0.21249928]
[1644008664546,0.13895417,40580.0,40577.0,0.04753125]
[1644008665347,0.42536359,40582.0,40577.0,0.05]
[1644008666152,0.48698759,40582.0,40577.0,0.05074471]
[1644008666349,0.54861076,40582.0,40577.0,0.05074471]
[1644008666597,0.12324717,40582.0,40577.0,0.05074471]
[1644008667201,0.17324717,40582.0,40577.0,0.05]
[1644008667397,0.17324717,40582.0,40577.0,0.05074472]
[1644008667799,0.28871515,40582.0,40577.0,0.05074472]
[1644008668399,0.28871515,40582.0,40577.0,0.05]
[1644008668599,0.28871515,40582.0,40577.0,0.05074472]
[1644008669204,0.28871515,40582.0,40576.0,0.00018576]
[1644008669205,1.4,40577.0,40576.0,0.00018576]
[1644008669406,1.834359,40577.0,40576.0,0.00047136]
[1644008669606,1.983759,40577.0,40576.0,0.00047136]
[1644008670004,2.19417338,40577.0,40576.0,0.00047136]
[1644008670206,1.983759,40577.0,40576.0,0.00047136]
[1644008670653,2.31755892,40577.0,40576.0,0.00047136]
[1644008670854,2.48699419,40577.0,40576.0,0.00047136]
[1644008671454,3.48699419,40577.0,40576.0,0.00047136]
[1644008671653,2.33699419,40577.0,40571.0,0.01982421]
[1644008671860,2.33699419,40577.0,40575.0,0.00047136]
[1644008671861,2.06560975,40576.0,40575.0,0.00047136]
[1644008672056,0.08946172,40573.0,40571.0,0.00552421]
[1644008672252,2.13354308,40572.0,40571.0,0.00552421]
[1644008672455,0.69784308,40572.0,40571.0,0.00552421]
[1644008672655,1.11756156,40572.0,40571.0,0.00552421]
[1644008672853,0.94812629,40572.0,40571.0,0.00552421]
[1644008673053,1.11756156,40572.0,40571.0,0.00552421]
[1644008673253,1.17921356,40572.0,40571.0,0.00552421]
[1644008673957,1.67921356,40572.0,40571.0,0.00552421]
[1644008674206,1.67921356,40572.0,40571.0,0.00283821]
[1644008674407,1.45,40571.0,40564.0,0.00018632]
[1644008674611,0.33560974,40565.0,40563.0,0.00430303]
[1644008674806,0.33560974,40565.0,40561.0,0.02]
[1644008674807,0.334359,40563.0,40561.0,0.02]
[1644008675007,2.0782596,40562.0,40561.0,0.02]
[1644008675205,2.1282596,40562.0,40561.0,0.02]
[1644008675406,1.4,40561.0,40555.0,0.0011]
[1644008675610,0.383759,40560.0,40555.0,0.0011]
[1644008675808,1.31401752,40560.0,40555.0,0.0011]
[1644008676005,0.334359,40558.0,40555.0,0.0011]
[1644008676208,1.15,40555.0,40553.0,0.0031]
[1644008676408,2.27478023,40554.0,40551.0,0.0181]
[1644008676610,1.95785137,40552.0,40551.0,0.0181]
[1644008676806,2.10785137,40552.0,40551.0,0.0181]
[1644008677008,2.27728664,40552.0,40551.0,0.0181]
[1644008677607,2.32668664,40552.0,40551.0,0.0181]
[1644008677850,1.311683,40551.0,40548.0,0.0205777]
[1644008678051,0.60641158,40550.0,40548.0,0.0205777]
[1644008678251,0.75319427,40550.0,40548.0,0.0205777]
[1644008678462,0.75319427,40550.0,40547.0,0.0011]
[1644008678463,1.784359,40548.0,40542.0,0.0122]
[1644008678653,1.784359,40548.0,40541.0,0.0211]
[1644008678654,1.4994,40547.0,40541.0,0.0211]
[1644008678853,0.0787579,40542.0,40541.0,0.0211]
[1644008679050,0.96711409,40542.0,40541.0,0.0211]
[1644008679452,0.88387415,40542.0,40541.0,0.0711]
[1644008679653,0.78387415,40542.0,40541.0,0.0711]
[1644008679853,0.78277415,40542.0,40541.0,0.0711]
[1644008683500,0.333259,40542.0,40541.0,0.0711]
[1644008683704,0.12335261,40551.0,40541.0,0.0711]
[1644008683904,0.334398,40551.0,40550.0,0.05]
[1644008684706,0.66521042,40551.0,40550.0,0.05]
[1644008684905,0.01991134,40554.0,40550.0,0.05]
[1644008685105,0.35430934,40554.0,40553.0,0.05]
[1644008685353,0.334398,40554.0,40553.0,0.05]
[1644008686152,0.334398,40554.0,40550.0,0.00045731]
[1644008686652,0.334398,40554.0,40553.0,0.05]
[1644008687056,0.45261089,40554.0,40553.0,0.05]
[1644008687452,0.72461965,40554.0,40553.0,0.05]
[1644008687752,0.72461965,40554.0,40546.0,0.05]
[1644008687951,0.92461965,40554.0,40546.0,0.05]
[1644008688153,0.334398,40553.0,40546.0,0.05]
[1644008688453,0.061669,40552.0,40546.0,0.05]
[1644008688654,0.4440332,40548.0,40546.0,0.05]
[1644008688854,0.334398,40547.0,40546.0,0.05]
[1644008690103,0.84903452,40547.0,40542.0,0.00018618]
[1644008690305,0.334398,40546.0,40542.0,0.00018618]
[1644008690503,0.334398,40546.0,40542.0,0.05]
[1644008690704,0.334398,40546.0,40542.0,0.05018618]
[1644008690705,0.434398,40546.0,40542.0,0.05018618]
[1644008691304,0.334398,40544.0,40542.0,0.05018618]
[1644008691503,0.334398,40544.0,40542.0,0.05080908]
[1644008691704,1.134398,40543.0,40542.0,0.05080908]
[1644008691906,0.334398,40543.0,40542.0,0.05080908]
[1644008692506,0.334398,40543.0,40542.0,0.05]
[1644008695359,0.334397,40543.0,40542.0,0.05]
[1644008698305,0.58498514,40543.0,40541.0,0.02128618]
[1644008698504,0.334397,40542.0,40541.0,0.0211]
[1644008698906,0.14941857,40542.0,40541.0,0.0211]
[1644008699305,0.061671,40551.0,40541.0,0.0711]
[1644008699508,0.061671,40551.0,40550.0,0.05]
[1644008699705,0.396072,40551.0,40550.0,0.05]
[1644008699906,0.334401,40551.0,40550.0,0.05]
[1644008701257,0.334401,40551.0,40548.0,0.00080854]
[1644008701453,0.334401,40551.0,40549.0,0.05]
[1644008701855,0.1,40560.0,40550.0,1.16591849]
[1644008702054,0.334401,40559.0,40556.0,0.05]
[1644008702455,0.334401,40559.0,40558.0,0.05]
[1644008702853,0.78699428,40559.0,40558.0,0.05]
[1644008705308,0.78699428,40559.0,40557.0,0.00018618]
[1644008705504,0.78699428,40559.0,40556.0,0.00073781]
[1644008705705,0.78699428,40559.0,40555.0,0.05]
[1644008705905,0.78699428,40559.0,40556.0,0.00073782]
[1644008706405,0.78699428,40559.0,40556.0,0.000924]
[1644008707003,0.78699428,40559.0,40556.0,0.00018618]
[1644008707203,0.78699428,40559.0,40555.0,0.05]
[1644008707204,0.334401,40557.0,40555.0,0.00073782]
[1644008707406,0.334401,40557.0,40556.0,0.05]
[1644008708050,0.334401,40557.0,40555.0,0.000924]
[1644008708251,0.334401,40557.0,40552.0,0.05]
[1644008708451,0.334401,40557.0,40554.0,0.00074094]
[1644008709352,0.334401,40557.0,40556.0,0.0063]
[1644008709553,0.334401,40557.0,40556.0,0.0013]
[1644008709752,0.383101,40557.0,40556.0,0.0013]
[1644008709954,0.334401,40557.0,40556.0,0.0013]
[1644008713104,0.51425728,40559.0,40554.0,0.00074424]
[1644008713303,0.84865828,40559.0,40558.0,0.0013]
[1644008713507,0.84159523,40559.0,40558.0,0.0013]
[1644008716452,0.38900195,40559.0,40558.0,0.0013]
[1644008716753,0.334401,40559.0,40558.0,0.0013]
[1644008720905,0.46064144,40559.0,40558.0,0.0013]
[1644008721502,0.46064144,40559.0,40556.0,0.00093046]
[1644008721703,0.32833244,40559.0,40558.0,0.0013]
[1644008722103,0.76716771,40559.0,40558.0,0.0013]
[1644008723754,0.56507571,40559.0,40558.0,0.0013]
[1644008723954,0.89947671,40559.0,40558.0,0.0013]
[1644008725357,0.334401,40557.0,40550.0,0.00297759]
[1644008725860,0.05,40558.0,40550.0,0.00297759]
[1644008726258,0.05,40558.0,40549.0,0.44788973]
[1644008726458,0.05,40558.0,40550.0,0.18455504]
[1644008726704,0.05,40558.0,40549.0,0.44788973]
[1644008727503,0.56507571,40559.0,40551.0,0.00041223]
[1644008727703,0.05,40555.0,40551.0,0.00041223]
[1644008728305,0.23233117,40558.0,40551.0,0.00041223]
[1644008728306,0.05,40556.0,40551.0,0.00041223]
[1644008728512,0.05,40556.0,40544.0,0.13724427]
[1644008728513,1.91383067,40552.0,40544.0,0.13724427]
[1644008728707,1.91383067,40552.0,40544.0,0.01984427]
[1644008728708,0.36190111,40551.0,40544.0,0.01984427]
[1644008728907,0.41190111,40551.0,40544.0,0.02149348]
[1644008729104,0.36190111,40551.0,40544.0,0.02149348]
[1644008729505,0.36190111,40551.0,40544.0,0.00164921]
[1644008729706,0.36190111,40551.0,40542.0,0.26391826]
[1644008729906,0.05,40550.0,40545.0,0.00078671]
[1644008731059,0.05,40550.0,40542.0,0.26391826]
[1644008731353,0.05,40550.0,40545.0,0.00079767]
[1644008731755,0.4,40549.0,40542.0,0.25971593]
[1644008732155,0.05,40550.0,40542.0,0.25971593]
[1644008732960,0.31477012,40544.0,40541.0,0.0211]
[1644008733158,0.111675,40548.0,40541.0,0.0211]
[1644008733356,0.05,40548.0,40541.0,0.0211]
[1644008734811,0.05,40548.0,40542.0,0.00083087]
[1644008735814,0.05,40548.0,40541.0,0.0211]
[1644008736014,0.05,40548.0,40543.0,0.00083087]
[1644008736913,0.05,40548.0,40541.0,0.0211]
[1644008737113,0.05,40548.0,40543.0,0.00083087]
[1644008739355,0.05,40548.0,40541.0,0.0211]
[1644008739757,0.05,40548.0,40541.0,0.0705]
[1644008740959,0.05,40548.0,40541.0,0.0656858]
[1644008743209,0.05,40548.0,40542.0,0.00083093]
[1644008743410,0.05,40548.0,40542.0,0.00101673]
[1644008744219,0.05,40548.0,40542.0,0.0001858]
[1644008744412,0.05,40548.0,40543.0,0.00083092]
[1644008745460,0.05,40548.0,40542.0,0.0001858]
[1644008745660,0.05,40548.0,40543.0,0.00083093]
[1644008745862,0.05,40548.0,40543.0,0.06249693]
[1644008746561,0.05,40548.0,40543.0,0.061666]
[1644008746766,0.05,40548.0,40543.0,0.06249693]
[1644008747864,0.05,40548.0,40543.0,0.061666]
[1644008748063,0.05,40548.0,40543.0,0.06249693]
[1644008748465,0.05,40548.0,40543.0,0.06022578]
[1644008749716,0.05,40546.0,40543.0,0.00083093]
[1644008750312,0.05,40546.0,40542.0,0.00083093]
[1644008750512,0.05,40546.0,40542.0,0.00101673]
[1644008751315,0.05,40546.0,40542.0,0.0001858]
[1644008751614,0.05,40546.0,40542.0,0.00083093]
[1644008751816,0.05,40546.0,40542.0,0.00101673]
[1644008752517,0.05,40546.0,40542.0,0.0001858]
[1644008752861,0.05,40546.0,40543.0,0.334401]
[1644008753062,0.05,40546.0,40543.0,0.384401]
[1644008753264,0.04128589,40546.0,40545.0,0.40477811]
[1644008753467,0.04128589,40547.0,40545.0,0.40477811]
[1644008753665,0.04128589,40547.0,40546.0,0.00871411]
[1644008754063,0.32444249,40553.0,40546.0,0.00871411]
[1644008754263,0.334401,40552.0,40549.0,0.00871411]
[1644008754468,0.334401,40552.0,40550.0,0.0494]
[1644008754663,1.02568689,40551.0,40550.0,0.0494]
[1644008755263,1.16549277,40551.0,40550.0,0.0494]
[1644008755463,0.18109177,40551.0,40545.0,0.00871411]
[1644008755663,0.18109177,40551.0,40546.0,0.0494]
[1644008756711,0.334401,40550.0,40546.0,0.0494]
[1644008756913,0.04128589,40548.0,40546.0,0.0494]
[1644008757813,0.04128589,40548.0,40546.0,0.0994]
[1644008758212,0.04128589,40548.0,40546.0,0.0494]
[1644008759214,0.04128589,40551.0,40547.0,0.41093416]
[1644008759617,0.04128589,40551.0,40547.0,0.46093416]
[1644008760962,0.04128589,40551.0,40548.0,0.00871411]
[1644008761862,0.19607037,40551.0,40548.0,0.00871411]
[1644008762062,0.04128589,40551.0,40548.0,0.00871411]
[1644008763665,0.04128589,40551.0,40546.0,0.41408128]
[1644008764914,0.04128589,40551.0,40546.0,0.1494]
[1644008765712,0.04128589,40551.0,40549.0,0.00871411]
[1644008765912,0.334401,40550.0,40549.0,0.00871411]
[1644008766512,0.04128589,40551.0,40549.0,0.00871411]
[1644008766915,0.334401,40552.0,40549.0,0.00871411]
[1644008769055,0.334401,40552.0,40549.0,0.00548611]
[1644008769459,0.37891489,40552.0,40549.0,0.00548611]
[1644008770162,0.37891489,40552.0,40546.0,0.1494]
[1644008771362,0.061671,40551.0,40546.0,0.1494]
[1644008772508,0.58936732,40552.0,40551.0,0.059994]
[1644008773110,0.37891489,40552.0,40551.0,0.059994]
[1644008773310,0.58936732,40552.0,40551.0,0.059994]
[1644008773509,0.37891489,40552.0,40551.0,0.059994]
[1644008774110,0.58936732,40552.0,40551.0,0.059994]
[1644008775014,0.37891489,40552.0,40551.0,0.059994]
[1644008775459,0.58936732,40552.0,40551.0,0.059994]
[1644008775760,0.37891489,40552.0,40551.0,0.059994]
[1644008776559,0.37891489,40552.0,40551.0,0.06548011]
[1644008776860,0.52657857,40552.0,40551.0,0.06548011]
[1644008777060,0.52657857,40552.0,40551.0,0.059994]
[1644008777262,0.37891489,40552.0,40551.0,0.059994]
[1644008778261,0.52030812,40552.0,40551.0,0.059994]
[1644008780108,0.37891489,40552.0,40551.0,0.059994]
[1644008781908,0.37891489,40552.0,40551.0,0.06548011]
[1644008782108,0.50497366,40552.0,40551.0,0.06548011]
[1644008783074,0.50497366,40552.0,40551.0,0.059994]
[1644008783473,0.50497366,40552.0,40551.0,0.06548011]
[1644008784270,0.67448789,40552.0,40551.0,0.059994]
[1644008784474,0.50497366,40552.0,40551.0,0.059994]
[1644008784672,0.67448789,40552.0,40551.0,0.059994]
[1644008784873,0.50497366,40552.0,40551.0,0.059994]
[1644008785073,0.50391523,40552.0,40551.0,0.06684436]
[1644008785276,0.334401,40552.0,40551.0,0.06684436]
[1644008785473,0.05,40552.0,40546.0,0.26482032]
[1644008785677,0.05,40552.0,40547.0,0.26482032]
[1644008786073,0.14266897,40551.0,40547.0,0.26482032]
[1644008786274,0.14266897,40551.0,40547.0,0.32648432]
[1644008786473,0.14266897,40551.0,40548.0,0.0494]
[1644008786716,0.05,40552.0,40548.0,0.0494]
[1644008787117,0.05,40552.0,40548.0,0.31422032]
[1644008787317,0.05,40552.0,40548.0,0.0494]
[1644008787516,0.39555303,40549.0,40548.0,0.31422032]
[1644008787717,0.39555303,40549.0,40544.0,0.2650061]
[1644008787916,0.05,40545.0,40543.0,0.00101675]
[1644008788116,0.05,40545.0,40543.0,0.00083097]
[1644008788515,0.17780504,40545.0,40543.0,0.00083097]
[1644008788717,0.17780504,40545.0,40542.0,0.00018578]
[1644008788917,0.17780504,40545.0,40542.0,0.00083093]
[1644008789217,0.17780504,40545.0,40542.0,0.26583703]
[1644008789818,0.17780504,40545.0,40542.0,0.2650061]
[1644008790018,0.05,40545.0,40542.0,0.3150061]
[1644008790458,0.05,40545.0,40542.0,0.2650061]
[1644008790762,0.05,40545.0,40542.0,0.3150061]
[1644008790962,0.05,40545.0,40543.0,0.26482032]
[1644008791157,0.05,40545.0,40544.0,0.36242862]
[1644008792357,0.05,40545.0,40543.0,0.00018578]
[1644008792557,0.05,40545.0,40542.0,0.32648932]
[1644008792558,0.05,40545.0,40542.0,0.3266751]
[1644008793358,0.05,40545.0,40544.0,0.00274104]
[1644008793564,0.13302105,40545.0,40544.0,0.00274104]
[1644008793763,0.23045079,40545.0,40544.0,0.00274104]
[1644008793959,0.56485179,40545.0,40544.0,0.00274104]
[1644008794210,0.51485179,40545.0,40544.0,0.00274104]
[1644008794410,0.37027459,40545.0,40544.0,0.00274104]
[1644008794612,1.1,40543.0,40541.0,0.09800936]
[1644008794814,1.1,40543.0,40536.0,0.31778596]
[1644008794815,0.55766863,40542.0,40536.0,0.31778596]
[1644008795015,0.68199581,40537.0,40535.0,0.0011]
[1644008795211,0.37027459,40537.0,40535.0,0.0011]
[1644008795611,0.34560772,40536.0,40535.0,0.0011]
[1644008797014,0.53898949,40536.0,40535.0,0.0011]
[1644008797212,0.19338177,40536.0,40535.0,0.0011]
[1644008798060,0.52778277,40536.0,40535.0,0.0011]
[1644008798358,0.19338177,40536.0,40535.0,0.0011]
[1644008798958,0.52778277,40536.0,40535.0,0.0011]
[1644008799159,0.19338177,40536.0,40535.0,0.0011]
[1644008799761,0.23796559,40537.0,40535.0,0.0011]
[1644008800062,0.37027459,40537.0,40535.0,0.0011]
[1644008800258,0.334401,40536.0,40535.0,0.0011]
[1644008800457,0.37027459,40537.0,40535.0,0.0011]
[1644008800861,0.18097148,40536.0,40535.0,0.0011]
[1644008801467,0.1808401,40536.0,40535.0,0.0011]
[1644008805559,0.5152411,40536.0,40535.0,0.0011]
[1644008805759,0.1808401,40536.0,40535.0,0.0011]
[1644008807261,0.5152411,40536.0,40535.0,0.0011]
[1644008807462,0.1808401,40536.0,40535.0,0.0011]
[1644008809416,0.37027459,40537.0,40535.0,0.0011]
[1644008810010,0.17920503,40536.0,40535.0,0.0011]
[1644008810413,0.334401,40534.0,40531.0,0.01848549]
[1644008810611,0.334401,40534.0,40533.0,0.00082823]
[1644008810814,0.54871557,40534.0,40533.0,0.00082823]
[1644008811415,0.54871557,40534.0,40532.0,0.00018549]
[1644008811416,0.37027459,40534.0,40532.0,0.00018549]
[1644008811614,0.1765579,40533.0,40531.0,0.01949923]
[1644008811814,0.80414946,40532.0,40531.0,0.01931374]
[1644008812857,0.80414946,40532.0,40531.0,0.01848549]
[1644008813259,0.80414946,40532.0,40531.0,0.0326119]
[1644008813460,0.80414946,40532.0,40531.0,0.01848549]
[1644008813659,1.24935751,40532.0,40531.0,0.01848549]
[1644008815461,1.24935751,40532.0,40527.0,0.0031]
[1644008816462,0.05,40528.0,40527.0,0.0031]
[1644008817117,0.04500001,40528.0,40527.0,0.0031]
[1644008818712,0.22436311,40528.0,40527.0,0.0031]
[1644008819112,0.37940101,40528.0,40527.0,0.0031]
[1644008819311,1.02940101,40528.0,40527.0,0.0031]
[1644008819715,0.82155798,40528.0,40527.0,0.0031]
[1644008820959,0.47940101,40528.0,40527.0,0.0031]
[1644008821256,0.66093159,40528.0,40527.0,0.0031]
[1644008822056,1.10595427,40528.0,40527.0,0.0031]
[1644008822858,0.92442369,40528.0,40527.0,0.0031]
[1644008827710,0.37940101,40528.0,40527.0,0.0031]
[1644008828762,0.56280953,40528.0,40527.0,0.0031]
[1644008829161,0.55599703,40528.0,40527.0,0.0031]
[1644008829562,0.65599703,40528.0,40527.0,0.0031]
[1644008829863,0.47940101,40528.0,40527.0,0.00246]
[1644008830264,0.65563848,40528.0,40527.0,0.00246]
[1644008830461,3.26805927,40528.0,40527.0,0.00246]
[1644008830665,0.37940101,40528.0,40527.0,0.00246]
[1644008830863,0.47940101,40528.0,40527.0,0.00246]
[1644008832408,0.65437225,40528.0,40527.0,0.00246]
[1644008832611,0.47940101,40528.0,40527.0,0.00246]
[1644008833407,0.65676809,40528.0,40527.0,0.00246]
[1644008833608,0.65926562,40528.0,40527.0,0.00246]
[1644008833810,0.65493142,40528.0,40527.0,0.00246]
[1644008834010,0.47940101,40528.0,40527.0,0.00246]
[1644008834911,0.6542751,40528.0,40527.0,0.00246]
[1644008835113,0.47940101,40528.0,40527.0,0.00246]
[1644008835359,0.65288951,40528.0,40527.0,0.00246]
[1644008837665,0.334401,40527.0,40524.0,0.00157317]
[1644008837861,0.434401,40527.0,40525.0,0.00018528]
[1644008838062,0.04500001,40526.0,40524.0,0.00175845]
[1644008838262,0.334401,40525.0,40524.0,0.00157317]
[1644008838463,0.334401,40525.0,40524.0,0.00657316]
[1644008838663,0.334401,40525.0,40524.0,0.00157317]
[1644008838864,0.04500001,40526.0,40524.0,0.00157317]
[1644008839718,0.334401,40525.0,40524.0,0.00157317]
[1644008841022,0.334401,40525.0,40522.0,0.00815844]
[1644008841219,0.04500001,40526.0,40522.0,0.00815844]
[1644008841617,0.04500001,40524.0,40522.0,0.00815844]
[1644008841818,0.04500001,40524.0,40522.0,0.00898637]
[1644008842859,0.04500001,40524.0,40522.0,0.00815844]
[1644008845761,0.42,40528.0,40518.0,0.75760816]
[1644008845960,0.05,40524.0,40518.0,0.4898222]
[1644008848115,0.05,40524.0,40518.0,0.80760816]
[1644008848315,0.05,40524.0,40518.0,0.4898222]
[1644008848517,0.05,40524.0,40518.0,0.80760816]
[1644008850355,0.05,40524.0,40519.0,0.00082796]
[1644008851160,0.05,40524.0,40518.0,0.80760816]
[1644008851356,0.05,40524.0,40519.0,0.00082797]
[1644008852361,0.42,40528.0,40518.0,0.86931616]
[1644008852563,0.42,40528.0,40521.0,0.98478596]
[1644008852765,0.42,40531.0,40528.0,0.04406437]
[1644008852965,0.42,40531.0,40530.0,1.36473377]
[1644008853168,0.42,40531.0,40530.0,2.100801]
[1644008853362,0.42,40531.0,40530.0,1.15098629]
[1644008853562,0.15145872,40538.0,40532.0,0.39608]
[1644008853761,0.15145872,40538.0,40533.0,0.111079]
[1644008853962,0.16954768,40542.0,40534.0,0.06167954]
[1644008854223,0.16954768,40542.0,40535.0,0.0494]
[1644008854625,0.44158212,40543.0,40535.0,0.11108]
[1644008854824,0.44158212,40543.0,40535.0,0.172752]
[1644008855025,0.0008278,40541.0,40537.0,0.43626079]
[1644008855225,0.0008278,40541.0,40538.0,0.383801]
[1644008855425,0.0007292,40541.0,40537.0,0.25499025]
[1644008855625,0.0007292,40541.0,40538.0,0.0494]
[1644008855828,0.0007292,40541.0,40538.0,0.111072]
[1644008856025,0.5718065,40543.0,40538.0,0.0494]
[1644008856226,0.334411,40542.0,40538.0,0.0494]
[1644008856826,0.43773248,40539.0,40538.0,0.0494]
[1644008857428,0.5718065,40543.0,40538.0,0.0494]
[1644008858369,0.40797841,40542.0,40538.0,0.0494]
[1644008859964,0.40880619,40542.0,40538.0,0.0494]
[1644008860870,0.40797841,40542.0,40538.0,0.0494]
[1644008861067,0.05,40540.0,40538.0,0.0494]
[1644008861910,0.40880619,40542.0,40538.0,0.0494]
[1644008862112,0.05,40541.0,40538.0,0.0494]
[1644008862313,0.00082779,40541.0,40538.0,0.0494]
[1644008863312,0.40797841,40542.0,40538.0,0.0494]
[1644008863515,0.4088062,40542.0,40538.0,0.0494]
[1644008863912,0.4088062,40542.0,40538.0,0.03246414]
[1644008864414,0.40797841,40542.0,40538.0,0.03246414]
[1644008864713,0.40880619,40542.0,40538.0,0.03246414]
[1644008865358,0.00082778,40542.0,40538.0,0.03246414]
[1644008865759,0.5718065,40543.0,40538.0,0.03246414]
[1644008865963,0.00082778,40542.0,40538.0,0.03246414]
[1644008866759,0.5718065,40543.0,40538.0,0.03246414]
[1644008867161,0.00082778,40542.0,40538.0,0.03246414]
[1644008867360,0.00082778,40542.0,40538.0,0.39016164]
[1644008867960,0.5718065,40543.0,40538.0,0.39016164]
[1644008868161,0.05,40539.0,40538.0,0.03246414]
[1644008868765,0.00082778,40542.0,40538.0,0.03246414]
[1644008868961,0.05,40539.0,40538.0,0.03246414]
[1644008870215,0.0008278,40541.0,40538.0,0.03246414]
[1644008870415,0.5718065,40543.0,40538.0,0.03246414]
[1644008870617,0.05,40539.0,40538.0,0.03246414]
[1644008871617,0.05,40539.0,40538.0,0.36687514]
[1644008872618,0.0008278,40541.0,40538.0,0.36687514]
[1644008872859,0.5718065,40543.0,40538.0,0.03246414]
[1644008873061,0.05,40539.0,40538.0,0.03246414]
[1644008873461,0.384411,40539.0,40538.0,0.03246414]
[1644008873963,0.05,40539.0,40538.0,0.03246414]
[1644008874159,0.05,40539.0,40538.0,0.03136414]
[1644008876359,0.42,40543.0,40538.0,0.03136414]
[1644008876813,0.00082739,40541.0,40538.0,0.03136414]
[1644008877714,0.59370198,40542.0,40538.0,0.03136414]
[1644008877916,0.59452935,40542.0,40538.0,0.03136414]
[1644008878116,0.14348623,40542.0,40538.0,0.03136414]
[1644008878315,0.00082737,40542.0,40538.0,0.03136414]
[1644008878917,0.42,40543.0,40538.0,0.03136414]
[1644008879121,0.00082737,40542.0,40538.0,0.03136414]
[1644008880218,0.00082737,40542.0,40538.0,0.08136414]
[1644008880668,0.00082737,40542.0,40538.0,0.03136414]
[1644008881271,0.47,40543.0,40538.0,0.03136414]
[1644008881568,0.00082737,40542.0,40538.0,0.03136414]
[1644008882469,0.60974622,40543.0,40538.0,0.03136414]
[1644008882668,0.00082737,40542.0,40538.0,0.03136414]
[1644008883669,0.60974622,40543.0,40538.0,0.03136414]
[1644008883872,0.00082737,40542.0,40539.0,0.061677]
[1644008884911,0.60974622,40543.0,40539.0,0.061677]
[1644008885213,0.61057358,40543.0,40539.0,0.061677]
[1644008885413,0.61057358,40543.0,40536.0,0.48808703]
[1644008885811,0.56057358,40543.0,40536.0,0.48808703]
[1644008886010,0.55974622,40543.0,40536.0,0.48808703]
[1644008886311,0.05082737,40542.0,40539.0,0.061677]
[1644008886810,0.00082737,40542.0,40540.0,0.00231406]
[1644008887213,0.4178,40543.0,40540.0,0.00231406]
[1644008887412,0.04768594,40541.0,40540.0,0.00231406]
[1644008887856,0.04768594,40541.0,40539.0,0.061677]
[1644008888057,0.04768594,40541.0,40537.0,0.0994]
[1644008888260,0.04768594,40538.0,40537.0,0.06168]
[1644008888557,0.04768594,40538.0,40537.0,0.396091]
[1644008888758,0.4178,40543.0,40537.0,0.44840506]